[Event "*** Titled Tuesday Blitz"]
[Site "Chess.com"]
[Date "2021.02.09"]
[Round "11"]
[White "Grineva_Marianna"]
[Black "ErikRonka"]
[Result "1-0"]
[WhiteElo "2250"]
[BlackElo "2438"]
[TimeControl "180+1"]
[EndTime "12:07:52 PST"]
[Termination "Grineva_Marianna won on time"]

1. e4 {[%clk 0:03:00.9]} 1... c6 {[%clk 0:02:58.7]} 2. d4 {[%clk 0:02:59.8]}
2... d5 {[%clk 0:02:59.6]} 3. e5 {[%clk 0:03:00.3]} 3... c5 {[%clk 0:02:55]} 4.
dxc5 {[%clk 0:02:59.6]} 4... e6 {[%clk 0:02:54.8]} 5. a3 {[%clk 0:02:59.6]} 5...
Nc6 {[%clk 0:02:54.6]} 6. Nf3 {[%clk 0:02:57.5]} 6... Bxc5 {[%clk 0:02:53.7]} 7.
b4 {[%clk 0:02:57.4]} 7... Bb6 {[%clk 0:02:52.5]} 8. Bd3 {[%clk 0:02:54.5]} 8...
Nge7 {[%clk 0:02:52.7]} 9. O-O {[%clk 0:02:51.9]} 9... Ng6 {[%clk 0:02:50.2]}
10. Re1 {[%clk 0:02:41.3]} 10... f6 {[%clk 0:02:47.9]} 11. exf6 {[%clk
0:02:23.6]} 11... Qxf6 {[%clk 0:02:48.8]} 12. c3 {[%clk 0:02:19]} 12... O-O
{[%clk 0:02:34.6]} 13. Bg5 {[%clk 0:02:17.7]} 13... Qf7 {[%clk 0:02:32.4]} 14.
Be3 {[%clk 0:02:08.2]} 14... Bc7 {[%clk 0:01:26.8]} 15. Nbd2 {[%clk 0:01:56.7]}
15... e5 {[%clk 0:01:16.3]} 16. Ng5 {[%clk 0:01:55.3]} 16... Qf6 {[%clk
0:01:09.8]} 17. Qh5 {[%clk 0:01:44.9]} 17... h6 {[%clk 0:00:53.6]} 18. Bxg6
{[%clk 0:01:43.4]} 18... d4 {[%clk 0:00:41.9]} 19. Nde4 {[%clk 0:01:34.3]} 19...
Qe7 {[%clk 0:00:37.8]} 20. cxd4 {[%clk 0:01:23.7]} 20... exd4 {[%clk 0:00:37.3]}
21. Bd2 {[%clk 0:01:18.1]} 21... Ne5 {[%clk 0:00:30.1]} 22. Bh7+ {[%clk
0:01:15.1]} 22... Kh8 {[%clk 0:00:29.3]} 23. Ng3 {[%clk 0:01:01.8]} 23... Bg4
{[%clk 0:00:17]} 24. Qh4 {[%clk 0:01:01.7]} 24... Qf6 {[%clk 0:00:15.3]} 25.
N3e4 {[%clk 0:00:51]} 25... Qb6 {[%clk 0:00:08.2]} 26. Nc5 {[%clk 0:00:36.8]}
26... Bd6 {[%clk 0:00:01.9]} 27. Be4 {[%clk 0:00:27.2]} 27... Rf6 {[%clk
0:00:02.1]} 28. Nh3 {[%clk 0:00:20.2]} 28... Bxh3 {[%clk 0:00:01.3]} 29. Qxh3
{[%clk 0:00:21.1]} 29... Raf8 {[%clk 0:00:01.4]} 30. Rf1 {[%clk 0:00:20.4]}
30... Nc4 {[%clk 0:00:01.8]} 31. Bc1 {[%clk 0:00:19]} 31... Bxc5 {[%clk
0:00:02.7]} 32. bxc5 {[%clk 0:00:18.7]} 32... Qxc5 {[%clk 0:00:03.6]} 33. Rb1
{[%clk 0:00:16.4]} 33... d3 {[%clk 0:00:03.7]} 34. Qg3 {[%clk 0:00:16.5]} 34...
Ne5 {[%clk 0:00:03.1]} 35. Be3 {[%clk 0:00:16.2]} 35... Qd6 {[%clk 0:00:02.8]}
36. Bxb7 {[%clk 0:00:15.4]} 36... d2 {[%clk 0:00:02.7]} 37. Bxd2 {[%clk
0:00:15.1]} 37... Qxd2 {[%clk 0:00:01.8]} 38. Qxe5 {[%clk 0:00:15.2]} 38... Rxf2
{[%clk 0:00:02.7]} 39. Bf3 {[%clk 0:00:13.9]} 39... Rxf1+ {[%clk 0:00:02.5]} 40.
Rxf1 {[%clk 0:00:13.2]} 40... Qa2 {[%clk 0:00:02.5]} 41. Qd6 {[%clk 0:00:12.3]}
41... Re8 {[%clk 0:00:01.7]} 42. Qd7 {[%clk 0:00:11.2]} 1-0

[Event "*** Titled Tuesday Blitz"]
[Site "Chess.com"]
[Date "2021.02.09"]
[Round "11"]
[White "StockholmMissile"]
[Black "HrvojeZagreb"]
[Result "1-0"]
[WhiteElo "2517"]
[BlackElo "2256"]
[TimeControl "180+1"]
[EndTime "12:07:53 PST"]
[Termination "StockholmMissile won on time"]

1. Nf3 {[%clk 0:03:00.9]} 1... f5 {[%clk 0:02:59.6]} 2. d4 {[%clk 0:03:00]} 2...
Nf6 {[%clk 0:02:59.5]} 3. Bg5 {[%clk 0:03:00]} 3... e6 {[%clk 0:02:59.3]} 4.
Nbd2 {[%clk 0:02:59.5]} 4... d5 {[%clk 0:02:57.8]} 5. e3 {[%clk 0:02:56.3]} 5...
Bd6 {[%clk 0:02:55.2]} 6. c4 {[%clk 0:02:55.2]} 6... c6 {[%clk 0:02:55.4]} 7.
Bf4 {[%clk 0:02:54.2]} 7... O-O {[%clk 0:02:54.6]} 8. Bd3 {[%clk 0:02:46.5]}
8... Ne4 {[%clk 0:02:53.1]} 9. O-O {[%clk 0:02:43.9]} 9... Be7 {[%clk 0:02:42]}
10. h3 {[%clk 0:02:41.2]} 10... Nd7 {[%clk 0:02:40.1]} 11. Ne5 {[%clk
0:02:40.5]} 11... Nxe5 {[%clk 0:02:36.5]} 12. Bxe5 {[%clk 0:02:41.4]} 12... Nxd2
{[%clk 0:02:26.8]} 13. Qxd2 {[%clk 0:02:40.2]} 13... Bf6 {[%clk 0:02:27.4]} 14.
f4 {[%clk 0:02:37.6]} 14... Bxe5 {[%clk 0:02:26.2]} 15. fxe5 {[%clk 0:02:37.6]}
15... Bd7 {[%clk 0:02:15.9]} 16. c5 {[%clk 0:02:33.8]} 16... b6 {[%clk
0:01:56.1]} 17. b4 {[%clk 0:02:32]} 17... a5 {[%clk 0:01:55.1]} 18. a3 {[%clk
0:02:31.4]} 18... axb4 {[%clk 0:01:44.3]} 19. axb4 {[%clk 0:02:30.2]} 19... Qc7
{[%clk 0:01:36.1]} 20. Qc3 {[%clk 0:02:23.3]} 20... b5 {[%clk 0:01:24.9]} 21.
Rxa8 {[%clk 0:02:18.4]} 21... Rxa8 {[%clk 0:01:24.1]} 22. Ra1 {[%clk 0:02:19.3]}
22... Qb8 {[%clk 0:01:20.2]} 23. Ra3 {[%clk 0:02:15]} 23... Bc8 {[%clk
0:01:10.9]} 24. Qa1 {[%clk 0:02:13.4]} 24... Bb7 {[%clk 0:01:05.1]} 25. Bc2
{[%clk 0:02:07.1]} 25... Rxa3 {[%clk 0:01:01.4]} 26. Qxa3 {[%clk 0:02:08]} 26...
Qa8 {[%clk 0:01:01.8]} 27. Qb2 {[%clk 0:02:07.9]} 27... h6 {[%clk 0:00:59.9]}
28. Bd1 {[%clk 0:01:58.7]} 28... Bc8 {[%clk 0:00:59.3]} 29. Kf1 {[%clk
0:01:53.9]} 29... Bd7 {[%clk 0:00:58.6]} 30. Ke1 {[%clk 0:01:53.9]} 30... Be8
{[%clk 0:00:58.2]} 31. Kd2 {[%clk 0:01:53.1]} 31... g5 {[%clk 0:00:53.9]} 32.
Kc1 {[%clk 0:01:52.5]} 32... Bg6 {[%clk 0:00:52.7]} 33. Bc2 {[%clk 0:01:43.1]}
33... Kg7 {[%clk 0:00:52.2]} 34. Kb1 {[%clk 0:01:35.5]} 34... f4 {[%clk
0:00:34.4]} 35. exf4 {[%clk 0:01:29.3]} 35... gxf4 {[%clk 0:00:22.4]} 36. Bxg6
{[%clk 0:01:28.6]} 36... Kxg6 {[%clk 0:00:23.3]} 37. Qc2+ {[%clk 0:01:26.2]}
37... Kg7 {[%clk 0:00:21.2]} 38. Kb2 {[%clk 0:01:20]} 38... Qf8 {[%clk
0:00:14.5]} 39. Qd3 {[%clk 0:01:17.2]} 39... Qf7 {[%clk 0:00:12.5]} 40. Qf3
{[%clk 0:00:56.5]} 40... Qf5 {[%clk 0:00:11.9]} 41. Kc3 {[%clk 0:00:51.7]} 41...
Kg6 {[%clk 0:00:11.5]} 42. Kd2 {[%clk 0:00:48.8]} 42... Qg5 {[%clk 0:00:09.6]}
43. Ke2 {[%clk 0:00:42.7]} 43... Qf5 {[%clk 0:00:09.1]} 44. Qg4+ {[%clk
0:00:24.4]} 44... Qxg4+ {[%clk 0:00:08.3]} 45. hxg4 {[%clk 0:00:24.5]} 1-0

[Event "*** Titled Tuesday Blitz"]
[Site "Chess.com"]
[Date "2021.02.09"]
[Round "11"]
[White "Arseniy_Nesterov"]
[Black "Sam_ChessMood"]
[Result "0-1"]
[WhiteElo "2820"]
[BlackElo "2876"]
[TimeControl "180+1"]
[EndTime "12:07:54 PST"]
[Termination "Sam_ChessMood won by checkmate"]

1. d4 {[%clk 0:03:00.9]} 1... Nf6 {[%clk 0:03:00.1]} 2. c4 {[%clk 0:03:01.3]}
2... e6 {[%clk 0:03:00.5]} 3. Nf3 {[%clk 0:03:01.3]} 3... d5 {[%clk 0:03:00.8]}
4. Nc3 {[%clk 0:03:01.3]} 4... Be7 {[%clk 0:03:01.2]} 5. Bg5 {[%clk 0:03:00.8]}
5... h6 {[%clk 0:02:58.4]} 6. Bh4 {[%clk 0:03:00.1]} 6... dxc4 {[%clk
0:02:55.2]} 7. e3 {[%clk 0:02:58.2]} 7... O-O {[%clk 0:02:54.3]} 8. Bxc4 {[%clk
0:02:57.6]} 8... c5 {[%clk 0:02:54.6]} 9. O-O {[%clk 0:02:48.8]} 9... cxd4
{[%clk 0:02:54.6]} 10. Nxd4 {[%clk 0:02:47.7]} 10... Bd7 {[%clk 0:02:54.9]} 11.
Be2 {[%clk 0:02:41.5]} 11... Nc6 {[%clk 0:02:54.7]} 12. Bf3 {[%clk 0:02:39.9]}
12... Ne5 {[%clk 0:02:51.1]} 13. Bxb7 {[%clk 0:02:20.2]} 13... Rb8 {[%clk
0:02:50.7]} 14. Ba6 {[%clk 0:02:15.9]} 14... Rxb2 {[%clk 0:02:46.3]} 15. Bg3
{[%clk 0:02:14.8]} 15... Rb6 {[%clk 0:02:19.8]} 16. Be2 {[%clk 0:02:07.7]} 16...
Bd6 {[%clk 0:02:14.9]} 17. a4 {[%clk 0:01:57.4]} 17... Bb8 {[%clk 0:01:31.2]}
18. a5 {[%clk 0:01:52.4]} 18... Rb4 {[%clk 0:01:28.5]} 19. a6 {[%clk 0:01:25.1]}
19... Nc6 {[%clk 0:01:10]} 20. Nxc6 {[%clk 0:01:05.1]} 20... Bxc6 {[%clk
0:01:09.5]} 21. Qxd8 {[%clk 0:01:03.5]} 21... Rxd8 {[%clk 0:01:09.4]} 22. Rab1
{[%clk 0:01:01.8]} 22... Rxb1 {[%clk 0:00:56.3]} 23. Rxb1 {[%clk 0:01:02.7]}
23... Bxg3 {[%clk 0:00:56.4]} 24. hxg3 {[%clk 0:01:02.8]} 24... h5 {[%clk
0:00:47.7]} 25. Rb4 {[%clk 0:00:20.8]} 25... g6 {[%clk 0:00:39.3]} 26. Rc4
{[%clk 0:00:18.8]} 26... Rd6 {[%clk 0:00:33.7]} 27. Rc5 {[%clk 0:00:14.4]} 27...
Nd7 {[%clk 0:00:19.2]} 28. Ra5 {[%clk 0:00:14.4]} 28... Nb6 {[%clk 0:00:16.2]}
29. Bf3 {[%clk 0:00:12.8]} 29... Be8 {[%clk 0:00:11.6]} 30. Rc5 {[%clk
0:00:10.8]} 30... Kg7 {[%clk 0:00:04.9]} 31. Rc7 {[%clk 0:00:10.5]} 31... Rd7
{[%clk 0:00:05.1]} 32. Rb7 {[%clk 0:00:10.1]} 32... Nc4 {[%clk 0:00:02.6]} 33.
Nb5 {[%clk 0:00:08.7]} 33... Rd2 {[%clk 0:00:01.3]} 34. Nxa7 {[%clk 0:00:07.6]}
34... Ne5 {[%clk 0:00:01.6]} 35. Nc8 {[%clk 0:00:05.1]} 35... Bc6 {[%clk
0:00:02]} 36. Bxc6 {[%clk 0:00:04.7]} 36... Rd1+ {[%clk 0:00:02.5]} 37. Kh2
{[%clk 0:00:03.8]} 37... Ng4+ {[%clk 0:00:03.4]} 38. Kh3 {[%clk 0:00:04.6]}
38... Rh1# {[%clk 0:00:03.8]} 0-1

[Event "*** Titled Tuesday Blitz"]
[Site "Chess.com"]
[Date "2021.02.09"]
[Round "11"]
[White "vinniethepooh"]
[Black "AndrewMaco"]
[Result "0-1"]
[WhiteElo "2738"]
[BlackElo "2691"]
[TimeControl "180+1"]
[EndTime "12:07:54 PST"]
[Termination "AndrewMaco won by resignation"]

1. d4 {[%clk 0:03:00.9]} 1... Nf6 {[%clk 0:02:54.9]} 2. c4 {[%clk 0:03:00.5]}
2... e6 {[%clk 0:02:52.2]} 3. Nc3 {[%clk 0:03:00.7]} 3... Bb4 {[%clk 0:02:51.4]}
4. f3 {[%clk 0:03:01.3]} 4... c5 {[%clk 0:02:49.4]} 5. d5 {[%clk 0:03:01.5]}
5... d6 {[%clk 0:02:47.8]} 6. e4 {[%clk 0:03:01.3]} 6... b5 {[%clk 0:02:47.7]}
7. Bd3 {[%clk 0:03:01.3]} 7... O-O {[%clk 0:02:45.8]} 8. Ne2 {[%clk 0:03:01.2]}
8... exd5 {[%clk 0:02:44]} 9. cxd5 {[%clk 0:03:00.9]} 9... a6 {[%clk 0:02:43.3]}
10. O-O {[%clk 0:03:00.3]} 10... Nbd7 {[%clk 0:02:21.5]} 11. Bg5 {[%clk
0:02:57.7]} 11... h6 {[%clk 0:02:07.1]} 12. Bh4 {[%clk 0:02:57.2]} 12... Ne5
{[%clk 0:02:07.8]} 13. Bc2 {[%clk 0:02:39.3]} 13... Ng6 {[%clk 0:01:50.9]} 14.
Bf2 {[%clk 0:02:34.8]} 14... Nh5 {[%clk 0:01:40]} 15. Qc1 {[%clk 0:02:28.5]}
15... Ba5 {[%clk 0:01:27.4]} 16. a3 {[%clk 0:02:06]} 16... Bb6 {[%clk
0:01:26.1]} 17. Nd1 {[%clk 0:01:58.6]} 17... Qf6 {[%clk 0:00:59.6]} 18. Be3
{[%clk 0:01:58.7]} 18... Ne5 {[%clk 0:00:51.2]} 19. Nf2 {[%clk 0:01:46.1]} 19...
Nc4 {[%clk 0:00:50.8]} 20. Ng4 {[%clk 0:01:10]} 20... Qxb2 {[%clk 0:00:46.6]}
21. Qxb2 {[%clk 0:00:42.2]} 21... Nxb2 {[%clk 0:00:47.5]} 22. Bb3 {[%clk
0:00:25.9]} 22... Bxg4 {[%clk 0:00:46.2]} 23. fxg4 {[%clk 0:00:26.8]} 23... Nf6
{[%clk 0:00:46.8]} 24. Rxf6 {[%clk 0:00:08.3]} 24... gxf6 {[%clk 0:00:44]} 25.
Nf4 {[%clk 0:00:09.2]} 25... Rab8 {[%clk 0:00:39.4]} 26. Nh5 {[%clk 0:00:08.5]}
26... c4 {[%clk 0:00:35.6]} 27. Bxb6 {[%clk 0:00:04.5]} 27... Rxb6 {[%clk
0:00:30.9]} 28. Nxf6+ {[%clk 0:00:04.8]} 28... Kg7 {[%clk 0:00:31.5]} 29. Nh5+
{[%clk 0:00:05.2]} 29... Kh8 {[%clk 0:00:30.6]} 30. Bc2 {[%clk 0:00:04.6]} 30...
a5 {[%clk 0:00:29.1]} 31. Rb1 {[%clk 0:00:04.3]} 31... c3 {[%clk 0:00:29.2]} 32.
Kf2 {[%clk 0:00:03]} 32... b4 {[%clk 0:00:29.6]} 33. axb4 {[%clk 0:00:03.9]}
33... axb4 {[%clk 0:00:30.5]} 34. Bb3 {[%clk 0:00:04.1]} 34... Ra8 {[%clk
0:00:30.1]} 35. Ke3 {[%clk 0:00:04.2]} 35... Ra3 {[%clk 0:00:23.5]} 36. Rf1
{[%clk 0:00:02.5]} 36... Rb7 {[%clk 0:00:20.7]} 37. Bc2 {[%clk 0:00:01.4]} 37...
b3 {[%clk 0:00:20.9]} 38. Rf6 {[%clk 0:00:01.8]} 38... bxc2 {[%clk 0:00:20.4]}
39. Rxh6+ {[%clk 0:00:02.3]} 39... Kg8 {[%clk 0:00:21]} 40. Nf6+ {[%clk
0:00:02.9]} 40... Kf8 {[%clk 0:00:21.1]} 41. g5 {[%clk 0:00:01.3]} 41... c1=Q+
{[%clk 0:00:17.2]} 42. Kf3 {[%clk 0:00:01.7]} 42... Qxg5 {[%clk 0:00:16.6]} 43.
Nh7+ {[%clk 0:00:02.2]} 43... Kg7 {[%clk 0:00:16.6]} 44. Nxg5 {[%clk 0:00:03.1]}
44... Kxh6 {[%clk 0:00:17.3]} 0-1

[Event "*** Titled Tuesday Blitz"]
[Site "Chess.com"]
[Date "2021.02.09"]
[Round "11"]
[White "Deepweb2020"]
[Black "floplover"]
[Result "1-0"]
[WhiteElo "2467"]
[BlackElo "2307"]
[TimeControl "180+1"]
[EndTime "12:07:59 PST"]
[Termination "Deepweb2020 won on time"]

1. d4 {[%clk 0:03:00.8]} 1... d5 {[%clk 0:02:59.3]} 2. c4 {[%clk 0:03:00.7]}
2... e6 {[%clk 0:02:59.5]} 3. Nf3 {[%clk 0:03:00.7]} 3... Nf6 {[%clk 0:02:58.7]}
4. g3 {[%clk 0:03:01.2]} 4... Be7 {[%clk 0:02:58.9]} 5. Bg2 {[%clk 0:03:01.1]}
5... O-O {[%clk 0:02:59.5]} 6. O-O {[%clk 0:03:00.5]} 6... dxc4 {[%clk 0:03:00]}
7. Qc2 {[%clk 0:03:00.5]} 7... a6 {[%clk 0:03:00.3]} 8. a4 {[%clk 0:03:00.5]}
8... Bd7 {[%clk 0:03:00.5]} 9. Qxc4 {[%clk 0:03:00.6]} 9... Bc6 {[%clk
0:03:00.9]} 10. Bf4 {[%clk 0:02:57.6]} 10... Bd6 {[%clk 0:03:00.7]} 11. Nc3
{[%clk 0:02:56.5]} 11... Nbd7 {[%clk 0:02:30.3]} 12. a5 {[%clk 0:02:53.9]} 12...
Bxf4 {[%clk 0:02:24.9]} 13. gxf4 {[%clk 0:02:54.8]} 13... Bxf3 {[%clk
0:02:24.7]} 14. Bxf3 {[%clk 0:02:54.2]} 14... c6 {[%clk 0:02:24.1]} 15. Kh1
{[%clk 0:02:50.5]} 15... Nd5 {[%clk 0:02:18]} 16. e3 {[%clk 0:02:47]} 16... Qe7
{[%clk 0:02:13.8]} 17. Rg1 {[%clk 0:02:42.6]} 17... Rac8 {[%clk 0:02:10.3]} 18.
Qf1 {[%clk 0:02:36.2]} 18... Qb4 {[%clk 0:02:04.3]} 19. Qg2 {[%clk 0:02:18.6]}
19... g6 {[%clk 0:02:04]} 20. f5 {[%clk 0:02:18.7]} 20... exf5 {[%clk 0:01:44]}
21. Bxd5 {[%clk 0:02:10.2]} 21... Qxb2 {[%clk 0:01:30]} 22. Na4 {[%clk
0:02:03.6]} 22... Qb4 {[%clk 0:01:21.3]} 23. Bf3 {[%clk 0:02:03.1]} 23... Qxa5
{[%clk 0:01:19.4]} 24. Nc5 {[%clk 0:01:52.4]} 24... Qc7 {[%clk 0:01:19.3]} 25.
Nd3 {[%clk 0:01:52.2]} 25... a5 {[%clk 0:01:14.6]} 26. h4 {[%clk 0:01:51.6]}
26... Ra8 {[%clk 0:01:07.9]} 27. h5 {[%clk 0:01:50.4]} 27... Qd6 {[%clk
0:01:05.3]} 28. Nf4 {[%clk 0:01:47.8]} 28... Kg7 {[%clk 0:01:00.5]} 29. d5
{[%clk 0:01:36]} 29... c5 {[%clk 0:00:56.9]} 30. Rac1 {[%clk 0:01:33.5]} 30...
b5 {[%clk 0:00:53.8]} 31. Qg5 {[%clk 0:01:27.4]} 31... Ne5 {[%clk 0:00:27.9]}
32. Be2 {[%clk 0:01:14.9]} 32... c4 {[%clk 0:00:18.7]} 33. h6+ {[%clk
0:01:06.7]} 33... Kh8 {[%clk 0:00:16.7]} 34. e4 {[%clk 0:00:50.6]} 34... fxe4
{[%clk 0:00:12.3]} 35. Nh5 {[%clk 0:00:39.4]} 35... Ra6 {[%clk 0:00:10.3]} 36.
Rb1 {[%clk 0:00:36.2]} 36... b4 {[%clk 0:00:08.9]} 37. Ng3 {[%clk 0:00:26]}
37... Qxd5 {[%clk 0:00:08.4]} 38. Rgd1 {[%clk 0:00:23.7]} 38... Qe6 {[%clk
0:00:05.9]} 39. Nxe4 {[%clk 0:00:20.6]} 39... Qh3+ {[%clk 0:00:05.5]} 40. Kg1
{[%clk 0:00:21.2]} 40... Nf3+ {[%clk 0:00:05.6]} 41. Bxf3 {[%clk 0:00:20.9]}
41... Qxf3 {[%clk 0:00:05.9]} 42. Qe5+ {[%clk 0:00:20.8]} 42... f6 {[%clk
0:00:05.9]} 43. Qe7 {[%clk 0:00:19.9]} 43... Qg4+ {[%clk 0:00:01.4]} 44. Ng3
{[%clk 0:00:18.9]} 1-0

[Event "*** Titled Tuesday Blitz"]
[Site "Chess.com"]
[Date "2021.02.09"]
[Round "11"]
[White "Nikolaj_6"]
[Black "SilviusTiberius"]
[Result "0-1"]
[WhiteElo "2624"]
[BlackElo "2522"]
[TimeControl "180+1"]
[EndTime "12:08:00 PST"]
[Termination "SilviusTiberius won by resignation"]

1. e4 {[%clk 0:03:00.9]} 1... e5 {[%clk 0:02:59.7]} 2. Nf3 {[%clk 0:03:00.8]}
2... Nc6 {[%clk 0:03:00]} 3. Bb5 {[%clk 0:03:01.1]} 3... Nf6 {[%clk 0:03:00.1]}
4. d3 {[%clk 0:03:00.6]} 4... Bc5 {[%clk 0:02:59.9]} 5. c3 {[%clk 0:03:00.6]}
5... d5 {[%clk 0:02:59.3]} 6. Qe2 {[%clk 0:03:00]} 6... O-O {[%clk 0:02:56.3]}
7. Bg5 {[%clk 0:02:59.2]} 7... dxe4 {[%clk 0:02:54.7]} 8. dxe4 {[%clk
0:03:00.1]} 8... h6 {[%clk 0:02:52.4]} 9. Bh4 {[%clk 0:02:59.4]} 9... Qe7 {[%clk
0:02:47.8]} 10. O-O {[%clk 0:02:58.1]} 10... Bd7 {[%clk 0:02:40.2]} 11. b4
{[%clk 0:02:50.8]} 11... Bb6 {[%clk 0:02:34.9]} 12. Nbd2 {[%clk 0:02:49.8]}
12... g5 {[%clk 0:02:26.3]} 13. Bg3 {[%clk 0:02:49.2]} 13... Nh5 {[%clk
0:02:26.9]} 14. a4 {[%clk 0:02:44.3]} 14... a6 {[%clk 0:02:23]} 15. Bxc6 {[%clk
0:02:31.2]} 15... Nxg3 {[%clk 0:02:17.8]} 16. hxg3 {[%clk 0:02:32.1]} 16... Bxc6
{[%clk 0:02:17.8]} 17. Nc4 {[%clk 0:02:29.1]} 17... f6 {[%clk 0:02:14.8]} 18.
Nxb6 {[%clk 0:02:25.4]} 18... cxb6 {[%clk 0:02:15.7]} 19. Nd2 {[%clk 0:02:21.7]}
19... b5 {[%clk 0:02:11.8]} 20. axb5 {[%clk 0:02:16.3]} 20... axb5 {[%clk
0:02:07.8]} 21. Qe3 {[%clk 0:02:06.9]} 21... Kg7 {[%clk 0:02:05.1]} 22. Nb3
{[%clk 0:02:00.3]} 22... Rfd8 {[%clk 0:01:55.7]} 23. Na5 {[%clk 0:01:57.6]}
23... Be8 {[%clk 0:01:39.7]} 24. Rfd1 {[%clk 0:01:55.8]} 24... Qc7 {[%clk
0:01:31.3]} 25. Nb3 {[%clk 0:01:47.8]} 25... Bf7 {[%clk 0:01:24]} 26. Nd2 {[%clk
0:01:39.8]} 26... Rac8 {[%clk 0:01:22.1]} 27. Rdc1 {[%clk 0:01:37.8]} 27... Rd7
{[%clk 0:01:18.8]} 28. Nf1 {[%clk 0:01:37.2]} 28... Qc4 {[%clk 0:01:15.7]} 29.
Qe1 {[%clk 0:01:32.1]} 29... Rd3 {[%clk 0:01:07.9]} 30. Ra7 {[%clk 0:01:13.5]}
30... Rc7 {[%clk 0:01:07.8]} 31. g4 {[%clk 0:01:09.6]} 31... Be6 {[%clk
0:01:07.5]} 32. Qe2 {[%clk 0:01:04.8]} 32... Rcd7 {[%clk 0:00:55]} 33. Ng3
{[%clk 0:00:58.9]} 33... Rxc3 {[%clk 0:00:51.6]} 34. Rxc3 {[%clk 0:00:53.1]}
34... Qxc3 {[%clk 0:00:52.1]} 35. Qxb5 {[%clk 0:00:43.2]} 35... Qe1+ {[%clk
0:00:52.3]} 36. Kh2 {[%clk 0:00:43.2]} 36... Qxf2 {[%clk 0:00:50.6]} 37. Rxb7
{[%clk 0:00:41.9]} 37... Rxb7 {[%clk 0:00:49.4]} 38. Qxb7+ {[%clk 0:00:42.8]}
38... Kg6 {[%clk 0:00:47.7]} 39. Qb8 {[%clk 0:00:33.9]} 39... Qa2 {[%clk
0:00:39.4]} 40. Qe8+ {[%clk 0:00:31.1]} 40... Bf7 {[%clk 0:00:37.7]} 41. Qd7
{[%clk 0:00:30.6]} 41... Be6 {[%clk 0:00:35.6]} 42. Qe8+ {[%clk 0:00:30.1]}
42... Bf7 {[%clk 0:00:35.8]} 43. Qh8 {[%clk 0:00:29.9]} 43... Be6 {[%clk
0:00:28.2]} 44. Nf5 {[%clk 0:00:25.2]} 44... Bxf5 {[%clk 0:00:23.6]} 45. exf5+
{[%clk 0:00:25.4]} 45... Kf7 {[%clk 0:00:24.3]} 46. Qxh6 {[%clk 0:00:23.7]}
46... Qf2 {[%clk 0:00:22.7]} 47. Qg6+ {[%clk 0:00:22.9]} 47... Ke7 {[%clk
0:00:21.8]} 48. Qg7+ {[%clk 0:00:21.8]} 48... Ke8 {[%clk 0:00:22.4]} 49. Qh8+
{[%clk 0:00:20]} 49... Ke7 {[%clk 0:00:22.4]} 50. Qh3 {[%clk 0:00:20.9]} 50...
Qf4+ {[%clk 0:00:21.7]} 51. g3 {[%clk 0:00:19.8]} 51... Qd2+ {[%clk 0:00:21.5]}
52. Qg2 {[%clk 0:00:19.6]} 52... Qxg2+ {[%clk 0:00:20.9]} 53. Kxg2 {[%clk
0:00:19.5]} 53... Kd6 {[%clk 0:00:21.6]} 54. Kf3 {[%clk 0:00:19.8]} 54... Kd5
{[%clk 0:00:22]} 55. Ke3 {[%clk 0:00:19.7]} 55... Kc4 {[%clk 0:00:22.4]} 0-1